fUSD/lending_fUSD_20260205
["ID","MTS","AMOUNT","RATE_DAILY","PERIOD"]
[404539849,1770267040335,-150.0,9.531e-05,2]
[404539850,1770267040344,-150.0,9.531e-05,2]
[404539851,1770267040353,-150.0,9.531e-05,2]
[404539852,1770267040362,-1680.0,9.584e-05,2]
[404539853,1770267040371,-255.0,9.585e-05,2]
[404539854,1770267040381,-250.0,9.585e-05,2]
[404539855,1770267040390,-301.95500035,9.585e-05,2]
[404539856,1770267040400,-150.0,9.586e-05,2]
[404539857,1770267040411,-9999.99,9.61e-05,2]
[404539858,1770267040421,-150.99,9.61e-05,2]
[404539859,1770267040430,-499.99,9.61e-05,2]
[404539860,1770267040440,-9999.99,9.61e-05,2]
[404539861,1770267040450,-9999.99,9.61e-05,2]
[404539862,1770267040459,-20997.41,9.61e-05,2]
[404539864,1770267040468,-310.92,9.61e-05,2]
[404539866,1770267040477,-999.99,9.61e-05,2]
[404539868,1770267040487,-2817.68,9.61e-05,2]
[404539870,1770267040496,-299.99,9.61e-05,2]
[404539872,1770267040505,-150.99,9.61e-05,2]
[404539874,1770267040514,-250.0,9.61e-05,2]
[404539876,1770267040523,-193.49422272,9.61e-05,2]
[404539878,1770267040532,-150.0,9.641e-05,2]
[404539880,1770267040541,-20758.12,9.67e-05,2]
[404539881,1770267040550,-19045.94,9.67e-05,2]
[404539882,1770267040559,-2065.86,9.67e-05,2]
[404539883,1770267040568,-9999.99,9.67e-05,2]
[404539884,1770267040577,-150.0,9.695e-05,2]
[404539885,1770267040586,-353937.99867049,9.724e-05,2]
[404539886,1770267040792,-500.0,9.726e-05,2]
[404539887,1770267040811,-150.0,9.726e-05,2]
[404539888,1770267040821,-500.0,9.726e-05,2]
[404539889,1770267040830,-150.0,9.75e-05,2]
[404539890,1770267040839,-500.0,9.781e-05,2]
[404539891,1770267040848,-150.0,9.781e-05,2]
[404539892,1770267040858,-202.05134841,9.805e-05,2]
[404539893,1770267040867,-200.0,9.805e-05,2]
[404539894,1770267040876,-456.05071944,9.836e-05,2]
[404539895,1770267040885,-150.0,9.836e-05,2]
[404539896,1770267040895,-269.4491186,9.89e-05,2]
[404539897,1770267040904,-6997.5987,9.973e-05,2]
[404539898,1770267040913,-495.81,0.0001,2]
[404539899,1770267040923,-500.0,0.0001,2]
[404539900,1770267040932,-151.0,0.0001,2]
[404539902,1770267040941,-151.0,0.0001,2]
[404539903,1770267040951,-151.0,0.0001,2]
[404539904,1770267040960,-151.0,0.0001,2]
[404539905,1770267040969,-500.0,0.0001,2]
[404539906,1770267040978,-151.0,0.0001,2]
[404539907,1770267040987,-500.0,0.0001,2]
[404539908,1770267040996,-151.0,0.0001,2]
[404539909,1770267041005,-500.0,0.0001,2]
[404539910,1770267041015,-151.0,0.0001,2]
[404539911,1770267041025,-500.0,0.0001,2]
[404539912,1770267041035,-151.0,0.0001,2]
[404539913,1770267041044,-500.0,0.0001,2]
[404539914,1770267041053,-151.0,0.0001,2]
[404539915,1770267041063,-500.0,0.0001,2]
[404539916,1770267041072,-151.0,0.0001,2]
[404539917,1770267041081,-500.0,0.0001,2]
[404539918,1770267041092,-151.0,0.0001,2]
[404539919,1770267041104,-500.0,0.0001,2]
[404539920,1770267041113,-151.0,0.0001,2]
[404539921,1770267041123,-500.0,0.0001,2]
[404539922,1770267041132,-151.0,0.0001,2]
[404539923,1770267041141,-500.0,0.0001,2]
[404539924,1770267041150,-151.0,0.0001,2]
[404539925,1770267041160,-500.0,0.0001,2]
[404539926,1770267041169,-151.0,0.0001,2]
[404539927,1770267041178,-151.0,0.0001,2]
[404539928,1770267041187,-151.0,0.0001,2]
[404539929,1770267041196,-151.0,0.0001,2]
[404539930,1770267041205,-151.0,0.0001,2]
[404539931,1770267041214,-151.0,0.0001,2]
[404539932,1770267041223,-500.0,0.0001,2]
[404539933,1770267041231,-500.0,0.0001,2]
[404539934,1770267041240,-500.0,0.0001,2]
[404539935,1770267041250,-500.0,0.0001,2]
[404539936,1770267041259,-500.0,0.0001,2]
[404539937,1770267041268,-500.0,0.0001,2]
[404539938,1770267041278,-500.0,0.0001,2]
[404539939,1770267041287,-500.0,0.0001,2]
[404539940,1770267041299,-500.0,0.0001,2]
[404539941,1770267041309,-500.0,0.0001,2]
[404539942,1770267041318,-500.0,0.0001,2]
[404539943,1770267041327,-200.0,0.0001,2]
[404539944,1770267041336,-151.0,0.0001,2]
[404539945,1770267041345,-151.0,0.0001,2]
[404539946,1770267041354,-151.0,0.0001,2]
[404539947,1770267041363,-151.0,0.0001,2]
[404539948,1770267041372,-151.0,0.0001,2]
[404539949,1770267041381,-151.0,0.0001,2]
[404539950,1770267041389,-151.0,0.0001,2]
[404539951,1770267041398,-151.0,0.0001,2]
[404539952,1770267041407,-151.0,0.0001,2]
[404539953,1770267041415,-151.0,0.0001,2]
[404539954,1770267041424,-151.0,0.0001,2]
[404539955,1770267041433,-200.0,0.0001,2]
[404539956,1770267041442,-164.9652846,0.0001,2]
[404539957,1770267041450,-500.0,0.0001,2]
[404539958,1770267041459,-166.7450837,0.0001,2]
[404539959,1770267041469,-166.7450837,0.0001,2]
[404539960,1770267041478,-500.0,0.00010274,2]
[404539961,1770267041487,-495.81,0.00010274,2]
[404539962,1770267041496,-250.37152364,0.00010376,2]
[404539963,1770267041505,-2351.0,0.00010543,2]
[404539964,1770267041514,-433.0,0.00010544,2]
[404539965,1770267041523,-500.0,0.00010548,2]
[404539966,1770267041532,-495.81,0.00010548,2]
[404539967,1770267041541,-500.0,0.00010548,2]
[404539968,1770267041550,-200.0,0.00010548,2]
[404539969,1770267041561,-200.0,0.00010548,2]
[404539970,1770267041571,-2692.4352384,0.00010712,2]
[404539971,1770267041580,-500.0,0.00010822,2]
[404539972,1770267041590,-495.81,0.00010822,2]
[404539973,1770267041599,-2794.00666021,0.000109,2]
[404539974,1770267041608,-2794.00666017,0.000109,2]
[404539975,1770267041617,-22309.04182376,0.00010929,2]
[404539976,1770267041628,-500.0,0.00010959,2]
[404539977,1770267041637,-500.0,0.00011096,2]
[404539978,1770267041646,-495.81,0.00011096,2]
[404539979,1770267041655,-500.0,0.00011096,2]
[404539980,1770267041664,-200.0,0.00011096,2]
[404539981,1770267041673,-200.0,0.00011096,2]
[404539982,1770267041683,-23261.70263212,0.00011099,2]
[404539983,1770267041692,-23261.70263212,0.00011099,2]
[404539984,1770267041704,-23261.70263212,0.00011099,2]
[404539985,1770267041714,-14667.79138848,0.00011099,2]
[404539986,1770267041723,-14667.79138847,0.00011099,2]
[404539987,1770267041732,-14667.79138847,0.00011099,2]
[404539988,1770267041742,-2794.00666017,0.00011284,2]
[404539989,1770267041751,-500.0,0.0001137,2]
[404539990,1770267041759,-495.81,0.0001137,2]
[404539991,1770267041769,-3292.0,0.00011597,2]
[404539992,1770267041779,-736.0,0.00011598,2]
[404539993,1770267041788,-500.0,0.00011644,2]
[404539994,1770267041797,-495.81,0.00011644,2]
[404539995,1770267041807,-500.0,0.00011644,2]
[404539996,1770267041817,-200.0,0.00011644,2]
[404539997,1770267041826,-200.0,0.00011644,2]
[404539998,1770267041836,-282.60927258,0.00011677,2]
[404539999,1770267041845,-23261.70263212,0.00011723,2]
[404540000,1770267041854,-14667.79138847,0.00011775,2]
[404540001,1770267041863,-247.75,0.00011775,2]
[404540002,1770267041873,-502.96360645,0.00011918,2]
[404540003,1770267041882,-495.81,0.00011918,2]
[404540004,1770267041891,-495.81,0.00012192,2]
[404540005,1770267041900,-500.0,0.00012192,2]
[404540006,1770267041909,-200.0,0.00012192,2]
[404540007,1770267041919,-200.0,0.00012192,2]
[404540008,1770267041928,-184.17,0.00012242,2]
[404540009,1770267041937,-2692.4352384,0.00012395,2]
[404540010,1770267041947,-495.81,0.00012466,2]
[404540011,1770267041956,-2794.00666017,0.00012607,2]
[404540012,1770267041966,-495.81,0.0001274,2]
[404540013,1770267041975,-500.0,0.0001274,2]
[404540014,1770267041984,-204.16847478,0.0001274,2]
[404540015,1770267041994,-200.0,0.0001274,2]
[404540016,1770267042004,-23261.70263212,0.00012751,2]
[404540017,1770267042014,-284.0,0.00012757,2]
[404540018,1770267042026,-1089.0,0.00012757,2]
[404540019,1770267042037,-14667.79138847,0.00012795,2]
[404540020,1770267042047,-6742.92093143,0.00012818,2]
[404540021,1770267042056,-17794.67502147,0.00012818,2]
[404540022,1770267042066,-31391.91600809,0.00012818,2]
[404540023,1770267042076,-495.81,0.00013014,2]
[404540024,1770267042086,-516.8,0.00013258,2]
[404540025,1770267042095,-164.96528458,0.00013269,2]
[404540026,1770267042104,-1155.80959211,0.00013269,2]
[404540027,1770267042114,-495.81,0.00013288,2]
[404540028,1770267042124,-500.0,0.00013288,2]
[404540029,1770267042133,-233.22924952,0.00013288,2]
[404540030,1770267042143,-3240.0,0.00013425,2]
[404540031,1770267042153,-495.81,0.00013562,2]
[404540032,1770267042162,-502.25237109,0.00013698,2]
[404540033,1770267042171,-500.0,0.00013698,2]
[404540034,1770267042180,-507.70655637,0.00013698,2]
[404540035,1770267042189,-500.0,0.00013698,2]
[404540036,1770267042199,-500.0,0.00013698,2]
[404540037,1770267042208,-198.00308747,0.00013698,2]
[404540038,1770267042217,-500.0,0.00013698,2]
[404540039,1770267042228,-500.0,0.00013698,2]
[404540040,1770267042238,-500.0,0.00013698,2]
[404540041,1770267042247,-405.3888533,0.00013698,2]
[404540042,1770267042257,-500.0,0.00013698,2]
[404540043,1770267042266,-500.0,0.00013698,2]
[404540044,1770267042276,-447.07793737,0.00013698,2]
[404540045,1770267042286,-500.0,0.00013698,2]
[404540046,1770267042298,-500.0,0.00013698,2]
[404540047,1770267042307,-500.0,0.00013698,2]
[404540048,1770267042316,-500.0,0.00013698,2]
[404540049,1770267042326,-500.0,0.00013698,2]
[404540050,1770267042336,-500.0,0.00013698,2]
[404540051,1770267042346,-500.0,0.00013698,2]
[404540052,1770267042355,-418.4948437,0.00013698,2]
[404540053,1770267042364,-500.0,0.00013698,2]
[404540054,1770267042373,-500.0,0.00013698,2]
[404540055,1770267042384,-500.0,0.00013698,2]
[404540056,1770267042392,-500.0,0.00013698,2]
[404540057,1770267042401,-519.87500599,0.00013698,2]
[404540058,1770267042411,-500.0,0.00013698,2]
[404540059,1770267042422,-500.0,0.00013698,2]
[404540060,1770267042431,-457.99797698,0.00013698,2]
[404540061,1770267042440,-519.49,0.00013698,2]
[404540062,1770267042449,-519.49,0.00013698,2]
[404540063,1770267042459,-519.49,0.00013698,2]
[404540064,1770267042469,-519.49,0.00013698,2]
[404540065,1770267042479,-519.49,0.00013698,2]
[404540066,1770267042488,-519.49,0.00013698,2]
[404540067,1770267042498,-519.49,0.00013698,2]
[404540068,1770267042509,-519.49,0.00013698,2]
[404540069,1770267042518,-519.49,0.00013698,2]
[404540070,1770267042527,-519.49,0.00013698,2]
[404540071,1770267042536,-519.49,0.00013698,2]
[404540072,1770267042546,-519.49,0.00013698,2]
[404540073,1770267042555,-519.49,0.00013698,2]
[404540074,1770267042564,-519.49,0.00013698,2]
[404540075,1770267042573,-519.49,0.00013698,2]
[404540076,1770267042582,-519.49,0.00013698,2]
[404540077,1770267042591,-519.49,0.00013698,2]
[404540078,1770267042600,-519.49,0.00013698,2]
[404540079,1770267042610,-519.49,0.00013698,2]
[404540080,1770267042620,-500.0,0.00013698,2]
[404540081,1770267042634,-500.0,0.00013698,2]
[404540082,1770267042644,-500.0,0.00013698,2]
[404540083,1770267042653,-500.0,0.00013698,2]
[404540084,1770267042663,-500.0,0.00013698,2]
[404540085,1770267042673,-500.0,0.00013698,2]
[404540086,1770267042682,-500.0,0.00013698,2]
[404540087,1770267042691,-500.0,0.00013698,2]
[404540088,1770267042703,-350.20210057,0.00013698,2]
[404540089,1770267042712,-500.0,0.00013698,2]
[404540090,1770267042722,-500.0,0.00013698,2]
[404540091,1770267042731,-500.0,0.00013698,2]
[404540092,1770267042741,-500.0,0.00013698,2]
[404540093,1770267042750,-500.0,0.00013698,2]
[404540094,1770267042760,-500.0,0.00013698,2]
[404540095,1770267042770,-500.0,0.00013698,2]
[404540096,1770267042779,-500.0,0.00013698,2]
[404540097,1770267042788,-500.0,0.00013698,2]
[404540098,1770267042797,-500.0,0.00013698,2]
[404540099,1770267042809,-500.0,0.00013698,2]
[404540100,1770267042819,-500.0,0.00013698,2]
[404540101,1770267042828,-500.0,0.00013698,2]
[404540103,1770267042837,-500.0,0.00013698,2]
[404540105,1770267042846,-500.0,0.00013698,2]
[404540107,1770267042855,-500.0,0.00013698,2]
[404540108,1770267042864,-500.0,0.00013698,2]
[404540110,1770267042874,-500.0,0.00013698,2]
[404540111,1770267042883,-500.0,0.00013698,2]
[404540112,1770267042893,-500.0,0.00013698,2]
[404540113,1770267042902,-500.0,0.00013698,2]
[404540114,1770267042912,-590.10761957,0.00013698,2]
[404540115,1770267042921,-500.0,0.00013698,2]
[404540116,1770267042931,-500.0,0.00013698,2]
[404540117,1770267042940,-500.0,0.00013698,2]
[404540118,1770267042949,-160.87387984,0.00013698,2]
[404540119,1770267042959,-500.0,0.00013698,2]
[404540120,1770267042968,-500.0,0.00013698,2]
[404540121,1770267042978,-288.02611632,0.00013698,2]
[404540122,1770267042987,-200.0,0.00013699,2]
[404540123,1770267042996,-2482.56,0.00013699,2]
[404540124,1770267043006,-23261.70263212,0.0001378,2]
[404540125,1770267043015,-14667.79138847,0.00013814,2]
[404540126,1770267043024,-495.81,0.00013836,2]
[404540127,1770267043034,-500.0,0.00013836,2]
[404540128,1770267043043,-2794.00666017,0.0001393,2]
[404540129,1770267043052,-2692.4352384,0.00014078,2]
[404540130,1770267043064,-1000.0,0.0001411,2]
[404540131,1770267043073,-495.81,0.0001411,2]
[404540132,1770267043082,-495.81,0.00014384,2]
[404540133,1770267043091,-500.0,0.00014384,2]
[404540134,1770267043100,-500.0,0.000146,2]
[404540135,1770267043109,-500.0,0.000146,2]
[404540136,1770267043119,-500.0,0.000146,2]
[404540137,1770267043127,-500.0,0.000146,2]
[404540138,1770267043137,-495.76472611,0.000146,2]
[404540139,1770267043146,-500.0,0.000146,2]
[404540140,1770267043156,-495.81,0.00014658,2]
[404540141,1770267043165,-23261.70263212,0.00014808,2]
[404540142,1770267043174,-14667.79138847,0.00014834,2]
[404540143,1770267043183,-495.81,0.00014932,2]
[404540144,1770267043193,-250.0,0.00015,2]
[404540145,1770267043204,-152.62,0.00015,2]
[404540146,1770267043213,-519.49,0.00015062,2]
[404540147,1770267043223,-519.49,0.00015062,2]
[404540148,1770267043232,-519.49,0.00015062,2]
[404540149,1770267043241,-519.49,0.00015062,2]
[404540150,1770267043251,-519.53,0.00015062,2]
[404540151,1770267043260,-1000.0,0.00015148,2]
[404540152,1770267043269,-1000.0,0.00015148,2]
[404540153,1770267043277,-495.81,0.00015205,2]
[404540154,1770267043287,-13422.0,0.00015233,2]
[404540155,1770267043296,-2794.00666017,0.00015253,2]
[404540156,1770267043305,-495.81,0.00015479,2]
[404540157,1770267043315,-160.0,0.00015523,2]
[404540158,1770267043324,-3491.028,0.00015603,2]
[404540159,1770267043333,-1335.0,0.00015603,2]
[404540160,1770267043342,-616.445,0.00015603,2]
[404540161,1770267043351,-1411.0,0.00015603,2]
[404540162,1770267043360,-150.0,0.00015603,2]
[404540163,1770267043370,-1271.0,0.00015603,2]
[404540164,1770267043379,-917.0,0.00015603,2]
[404540165,1770267043388,-1205.0,0.00015603,2]
[404540166,1770267043397,-6581.0,0.00015603,2]
[404540167,1770267043406,-1317.0,0.00015603,2]
[404540168,1770267043415,-2466.995,0.00015603,2]
[404540169,1770267043424,-3254.0,0.00015603,2]
[404540170,1770267043433,-1500.0,0.00015696,2]
[404540171,1770267043442,-1504.24108191,0.00015696,2]
[404540172,1770267043452,-8633.52619887,0.000157,2]
[404540173,1770267043461,-495.92715052,0.00015753,2]
[404540174,1770267043470,-2692.4352384,0.0001576,2]
[404540175,1770267043480,-500.0,0.00015793,2]
[404540176,1770267043490,-23261.70263212,0.00015837,2]
[404540177,1770267043499,-14667.79138847,0.00015854,2]
[404540178,1770267043510,-1600.0,0.00015941,2]
[404540179,1770267043519,-1291.24412758,0.00016244,2]
[404540180,1770267043528,-247.75,0.00016282,2]
[404540181,1770267043537,-1000.0,0.00016438,2]
[404540182,1770267043546,-2794.00666017,0.00016577,2]
[404540183,1770267043555,-1000.0,0.00016712,2]
[404540184,1770267043565,-165.83,0.00016712,2]
[404540185,1770267043574,-46960.42892092,0.00016818,2]
[404540186,1770267043582,-23261.70263212,0.00016865,2]
[404540187,1770267043591,-14667.79138847,0.00016874,2]
[404540188,1770267043600,-33863.4831917,0.000169,3]
[404540189,1770267043609,-160.0,0.000169,3]
[404540190,1770267043619,-1000.0,0.00016986,2]
[404540191,1770267043631,-300.0,0.00017,2]
[404540192,1770267043641,-500.0,0.00017,5]
[404540193,1770267043651,-500.0,0.00017,2]
[404540194,1770267043660,-748.0,0.0001701,2]
[404540195,1770267043670,-748.0,0.00017077,2]
[404540196,1770267043680,-578.20924308,0.00017099,2]
[404540197,1770267043690,-743.50770149,0.00017099,2]
[404540198,1770267043702,-174.61919141,0.00017099,2]
[404540199,1770267043711,-209.40437684,0.00017099,2]
[404540200,1770267043720,-322.6107,0.00017099,2]
[404540201,1770267043729,-2000.0,0.00017099,2]
[404540202,1770267043738,-2000.0,0.00017099,2]
[404540203,1770267043747,-2000.0,0.00017099,2]
[404540204,1770267043756,-2000.0,0.00017099,2]
[404540205,1770267043766,-2000.0,0.00017099,2]
[404540206,1770267043775,-2000.0,0.00017099,2]
[404540207,1770267043785,-2000.0,0.00017099,2]
[404540208,1770267043795,-1508.30623238,0.00017099,2]
[404540209,1770267043806,-1449.10348087,0.00017099,2]
[404540210,1770267043815,-200.0,0.00017127,2]
[404540211,1770267043825,-217.15233878,0.00017154,2]
[404540212,1770267043834,-748.0,0.0001718,2]
[404540213,1770267043843,-225.18697532,0.00017209,2]
[404540214,1770267043852,-168.0,0.00017235,2]
[404540215,1770267043862,-168.0,0.00017245,2]
[404540216,1770267043872,-1000.0,0.0001726,2]
[404540217,1770267043882,-233.51889341,0.00017264,2]
[404540218,1770267043891,-200.0,0.00017304,2]
[404540219,1770267043900,-168.0,0.00017308,2]
[404540220,1770267043910,-63539.1207,0.00017318,2]
[404540221,1770267043919,-242.15909246,0.00017319,2]
[404540222,1770267043928,-748.0,0.00017355,2]
[404540223,1770267043938,-251.11897888,0.00017374,2]
[404540224,1770267043948,-200.0,0.000174,6]
[404540225,1770267043957,-260.4103811,0.00017429,2]
[404540226,1770267043967,-168.0,0.00017456,2]
[404540227,1770267043976,-270.0455652,0.00017484,2]
[404540228,1770267043985,-200.0,0.000175,6]
[404540229,1770267043995,-200.0,0.00017523,2]
[404540230,1770267044004,-1000.0,0.00017534,2]
[404540231,1770267044014,-280.03725112,0.00017539,2]
[404540232,1770267044023,-168.0,0.00017542,2]
[404540233,1770267044034,-200.0,0.00017573,2]
[404540234,1770267044044,-290.39862941,0.00017594,2]
[404540235,1770267044053,-200.0,0.000176,6]
[404540236,1770267044063,-209.98794847,0.00017647,2]
[404540237,1770267044073,-181.08010149,0.00017647,2]
[404540238,1770267044082,-301.1433787,0.00017649,2]
[404540239,1770267044091,-200.0,0.000177,6]
[404540240,1770267044100,-1000.0,0.00017726,2]
[404540241,1770267044109,-247.75,0.0001773,2]
[404540242,1770267044118,-1000.0,0.00017742,2]
[404540243,1770267044128,-951.124593,0.00017765,7]
[404540244,1770267044137,-537.68350853,0.00017791,2]
[404540245,1770267044147,-1000.0,0.00017793,2]
[404540246,1770267044157,-449.0,0.000178,6]
[404540247,1770267044166,-1000.0,0.00017808,2]
[404540248,1770267044175,-1000.0,0.00017815,2]
[404540249,1770267044184,-1000.0,0.00017829,2]
[404540250,1770267044194,-500.0,0.00017856,2]
[404540251,1770267044203,-500.0,0.00017856,2]
[404540252,1770267044212,-1000.0,0.00017874,2]
[404540253,1770267044222,-14667.79138847,0.00017894,2]
[404540254,1770267044231,-23261.70263212,0.00017894,2]
[404540255,1770267044240,-25000.0,0.000179,3]
[404540256,1770267044250,-160.0,0.000179,3]
[404540257,1770267044260,-6440.65816456,0.000179,3]
[404540258,1770267044269,-2794.00666017,0.000179,2]
[404540259,1770267044278,-164.96528458,0.000179,2]
[404540260,1770267044287,-1155.80959211,0.000179,2]
[404540261,1770267044296,-1000.0,0.00017905,2]
[404540262,1770267044306,-167.56455375,0.00017921,2]
[404540263,1770267044317,-1000.0,0.00017927,2]
[404540264,1770267044329,-1600.0,0.00017933,2]
[404540265,1770267044338,-53048.0,0.00017973,2]
[404540266,1770267044347,-500.0,0.00017973,2]
[404540267,1770267044357,-500.0,0.00017973,2]
[404540268,1770267044367,-500.0,0.00017973,2]
[404540269,1770267044377,-500.0,0.00017973,2]
[404540270,1770267044387,-520.97702983,0.00017973,2]
[404540271,1770267044397,-500.0,0.00017973,2]
[404540272,1770267044407,-500.0,0.00017973,2]
[404540273,1770267044416,-500.0,0.00017973,2]
[404540274,1770267044426,-309.44398841,0.00017973,2]
[404540275,1770267044435,-500.0,0.00017973,2]
[404540276,1770267044445,-500.0,0.00017973,2]
[404540277,1770267044457,-500.0,0.00017973,2]
[404540278,1770267044467,-500.0,0.00017973,2]
[404540279,1770267044487,-500.0,0.00017973,2]
[404540280,1770267044510,-500.0,0.00017973,2]
[404540281,1770267044529,-500.0,0.00017973,2]
[404540282,1770267044551,-500.0,0.00017973,2]
[404540283,1770267044572,-500.0,0.00017973,2]
[404540284,1770267044594,-500.0,0.00017973,2]
[404540285,1770267044616,-500.0,0.00017973,2]
[404540286,1770267044637,-500.0,0.00017973,2]
[404540287,1770267044658,-500.0,0.00017973,2]
[404540288,1770267044677,-561.5530591,0.00017973,2]
[404540289,1770267044695,-500.0,0.00017973,2]
[404540290,1770267044708,-500.0,0.00017973,2]
[404540291,1770267044721,-500.0,0.00017973,2]
[404540292,1770267044731,-500.0,0.00017973,2]
[404540293,1770267044743,-500.0,0.00017973,2]
[404540294,1770267044755,-500.0,0.00017973,2]
[404540295,1770267044772,-500.0,0.00017973,2]
[404540296,1770267044784,-500.0,0.00017973,2]
[404540297,1770267044794,-500.0,0.00017973,2]
[404540298,1770267044807,-500.0,0.00017973,2]
[404540299,1770267044819,-500.0,0.00017973,2]
[404540300,1770267044832,-500.0,0.00017973,2]
[404540301,1770267044842,-500.0,0.00017973,2]
[404540303,1770267044852,-500.0,0.00017973,2]
[404540305,1770267044862,-500.0,0.00017973,2]
[404540307,1770267044875,-500.0,0.00017973,2]
[404540308,1770267044885,-262.39107038,0.00017973,2]
[404540309,1770267044898,-502.08032841,0.00017973,2]
[404540310,1770267044910,-151.0,0.00017973,2]
[404540312,1770267045081,-151.0,0.00017973,2]
[404540313,1770267045091,-151.0,0.00017973,2]
[404540314,1770267045100,-169.44963,0.00017973,2]
[404540315,1770267045109,-1000.0,0.00017978,2]
[404540316,1770267045119,-202.419,0.00017988,2]
[404540317,1770267045128,-166.7450837,0.0001799,2]
[404540318,1770267045137,-300.0,0.00017993,2]
[404540319,1770267045146,-300.0,0.00017993,2]
[404540320,1770267045156,-666.0,0.00017993,2]
[404540321,1770267045165,-3570.2533072,0.00017994,2]
[404540322,1770267045174,-325796.9415216,0.00017994,2]
[404540323,1770267045183,-7140.5066143,0.00017994,2]
[404540324,1770267045192,-153.745102,0.00017994,2]
[404540325,1770267045202,-151.0,0.00017994,2]
[404540326,1770267045211,-186.6211631,0.00017994,2]
[404540327,1770267045220,-151.0,0.00017994,2]
[404540328,1770267045229,-151.0,0.00017994,2]
[404540329,1770267045238,-151.0,0.00017994,2]
[404540330,1770267045247,-151.0,0.00017994,2]
[404540331,1770267045257,-151.0,0.00017994,2]
[404540332,1770267045266,-386.007616,0.00017994,2]
[404540333,1770267045275,-386.007616,0.00017994,2]
[404540334,1770267045284,-386.007616,0.00017994,2]
[404540335,1770267045293,-386.007616,0.00017994,2]
[404540336,1770267045303,-150.0,0.00017999,2]
[404540337,1770267045314,-252.01216033,0.00017999,2]
[404540338,1770267045323,-1010.8044,0.00017999,2]
[404540339,1770267045332,-300.0,0.00017999,2]
[404540340,1770267045341,-300.0,0.00017999,2]
[404540341,1770267045350,-666.0,0.00017999,2]
[404540342,1770267045359,-156153.12738629,0.00018,2]
[404540343,1770267045368,-2478642.53302649,0.00018,2]
[404540344,1770267045427,-717.4190408,0.00018,2]
[404540345,1770267045548,-291.67881028,9.389e-05,2]
[404540346,1770267045736,-201.32118972,9.389e-05,2]
[404540347,1770267045747,-113.91837714,0.00018,2]
[404540391,1770267046188,-69372.15054666,0.00018,2]
[404540397,1770267046243,-1565.18,0.00018,2]
[404540399,1770267046255,-4976.1548559,0.00018,2]
[404540405,1770267046299,-425.14285161,0.00018,2]
[404540835,1770267761867,189.8,7.031e-05,2]
[404540849,1770267938876,-300.0,8.513e-05,2]
[404540850,1770267938909,-200.0,8.513e-05,2]
[404540851,1770267938971,-289.56523372,8.513e-05,2]
[404540864,1770268191643,1839.19,7.948e-05,2]
[404540880,1770268232207,-219.0,8.221e-05,2]
[404540881,1770268232218,-1219.82,8.221e-05,2]
[404540882,1770268232227,-500.0,8.514e-05,2]
[404540883,1770268232237,-347.59446407,8.514e-05,2]
[404540884,1770268232246,-300.0,8.514e-05,2]
[404540885,1770268232256,-300.0,8.514e-05,2]
[404540886,1770268232265,-466.59893439,8.514e-05,2]
[404540887,1770268232284,-733.40106561,8.514e-05,2]
[404540888,1770268232293,-300.0,8.514e-05,2]
[404540889,1770268232302,-450.16154606,8.515e-05,2]